Workbook

Sheet Inicio MBNOcp
A24: Descargue la versión Kindle
K32: Miguel Cervantes Jiménez

Sheet mlNOc_trabajo_compet (hidden)
A1: MERCADO LABORAL NO COMPETITIVO
A2: Elección del monopolio de la cantidad de trabajo en mercado laboral competitivo
B5: Función de producción | D5: Función inversa de demanda
B6: y | C6: =OcultomlabNOcom!C27 -> 7.1 | D6: b0 | E6: 100.0
B7: A | C7: 2.0 | D7: b1 | E7: -2.0
B8: q1 | C8: 12.8 | D8: y | E8: =C6 -> 7.1
B9: a | C9: 0.5 | D9: p | E9: =OcultomlabNOcom!E30 -> 85.7
B10: w1 | C10: 20.0
B11: Insertar datos correspondientes | J11: =(C9*E6*C7*C8^(C9-1))-(2*C9*E7*-1*C7^2*C8^(2*C9-1))-C10 -> -1.738383195e-05
B26: Títulos
B27: Resultados
B28: Insertar Datos
B29: Insertar datos
B30: Cantidad de equilibrio

Sheet OcultomlabNOcom (hidden)
A1: Maximización del Beneficio monopolio con trabajo competitivo
A2: Ponderador | B2: Función de Producción | C2: q1 | D2: Producto Marginal | E2: IMPM | F2: VPM | G2: Y | H2: P | I2: w | J2: x1 line
A3: 0 | B3: =C$28*(C3^(C$30)) -> 0 | C3: =C$29*1.6*A3 -> 0 | D3: 0 | G3: =$E$27/$E$28*-A3 -> 0 | H3: =$E$27+$E$28*G3 -> 100.00 | I3: =$C$31 -> 20.0 | J3: =$C$29 -> 12.76 | K3: =$C$31*A3 -> 0
A4: 0.05 | B4: 2.02 | C4: 1.02 | D4: =C$30*C$28*(C4^($C$30-1)) -> 0.99 | E4: =($C$30*$E$27*$C$28*C4^($C$30-1))-(2*$C$30*$E$28*-1*$C$28^2*C4^(2*$C$30-1)) -> 90.9948879 | F4: =$C$30*H4*$C$28*C4^($C$30-1) -> 94.04514351 | G4: =$E$27/$E$28*-A4 -> 2.50 | H4: =$E$27+$E$28*G4 -> 95.00 | I4: 20.0 | J4: =$C$29 -> 12.76 | K4: =$C$31*A4 -> 1.00
A5: 0.10 | B5: 2.86 | C5: 2.04 | D5: =C$30*C$28*(C5^($C$30-1)) -> 0.70 | E5: 61.99995654 | F5: =$C$30*H5*$C$28*C5^($C$30-1) -> 62.99996089 | G5: 5.00 | H5: 90.00 | I5: 20.0 | J5: 12.76 | K5: 2.00
A6: 0.15 | B6: 3.50 | C6: 3.06 | D6: 0.57 | E6: 49.15472518 | F6: 48.5815164 | G6: 7.50 | H6: 85.00 | I6: 20.0 | J6: 12.76 | K6: 3.00
A7: 0.20 | B7: 4.04 | C7: 4.08 | D7: 0.49 | E7: 41.49744395 | F7: 39.59795516 | G7: 10.00 | H7: 80.00 | I7: 20.0 | J7: 12.76 | K7: 4.00
A8: 0.25 | B8: 4.52 | C8: 5.10 | D8: 0.44 | E8: 36.27185976 | F8: 33.20389482 | G8: 12.50 | H8: 75.00 | I8: 20.0 | J8: 12.76 | K8: 5.00
A9: 0.30 | B9: 4.95 | C9: 6.12 | D9: 0.40 | E9: 32.41449375 | F9: 28.29014563 | G9: 15.00 | H9: 70.00 | I9: 20.0 | J9: 12.76 | K9: 6.00
A10: 0.35 | B10: 5.35 | C10: 7.14 | D10: 0.37 | E10: 29.41655064 | F10: 24.32075791 | G10: 17.50 | H10: 65.00 | I10: 20.0 | J10: 12.76 | K10: 7.00
A11: 0.40 | B11: 5.71 | C11: 8.16 | D11: 0.35 | E11: 26.99997827 | F11: 20.99998696 | G11: 20.00 | H11: 60.00 | I11: 20.0 | J11: 12.76 | K11: 8.00
A12: 0.45 | B12: 6.06 | C12: 9.18 | D12: 0.33 | E12: 24.99829597 | F12: 18.14906278 | G12: 22.50 | H12: 55.00 | I12: 20.0 | J12: 12.76 | K12: 9.00
A13: 0.50 | B13: 6.39 | C13: 10.20 | D13: 0.31 | E13: 23.30493225 | F13: 15.65246612 | G13: 25.00 | H13: 50.00 | I13: 20.0 | J13: 12.76 | K13: 10.00
A14: 0.55 | B14: 6.70 | C14: 11.22 | D14: 0.30 | E14: 21.84808176 | F14: 13.43163679 | G14: 27.50 | H14: 45.00 | I14: 20.0 | J14: 12.76 | K14: 11.00
A15: 0.60 | B15: 7.00 | C15: 12.24 | D15: 0.29 | E15: 20.57736259 | F15: 11.43094504 | G15: 30.00 | H15: 40.00 | I15: 20.0 | J15: 12.76 | K15: 12.00
A16: 0.65 | B16: 7.28 | C16: 13.27 | D16: 0.27 | E16: 19.45624187 | F16: 9.609684656 | G16: 32.50 | H16: 35.00 | I16: 20.0 | J16: 12.76 | K16: 13.00
A17: 0.70 | B17: 7.56 | C17: 14.29 | D17: 0.26 | E17: 18.45749668 | F17: 7.937249005 | G17: 35.00 | H17: 30.00 | I17: 20.0 | J17: 12.76 | K17: 14.00
A18: 0.75 | B18: 7.82 | C18: 15.31 | D18: 0.26 | E18: 17.56037015 | F18: 6.390092537 | G18: 37.50 | H18: 25.00 | I18: 20.0 | J18: 12.76 | K18: 15.00
A19: 0.80 | B19: 8.08 | C19: 16.33 | D19: 0.25 | E19: 16.74872198 | F19: 4.949744395 | G19: 40.00 | H19: 20.00 | I19: 20.0 | J19: 12.76 | K19: 16.00
A20: 0.85 | B20: 8.33 | C20: 17.35 | D20: 0.24 | E20: 16.00978701 | F20: 3.601468052 | G20: 42.50 | H20: 15.00 | I20: 20.0 | J20: 12.76 | K20: 17.00
A21: 0.90 | B21: 8.57 | C21: 18.37 | D21: 0.23 | E21: 15.33331885 | F21: 2.333331885 | G21: 45.00 | H21: 10.00 | I21: 20.0 | J21: 12.76 | K21: 18.00
A22: 0.95 | B22: 8.81 | C22: 19.39 | D22: 0.23 | E22: 14.71098486 | F22: 1.135549243 | G22: 47.50 | H22: 5.00 | I22: 20.0 | J22: 12.76 | K22: 19.00
A23: 1.00 | B23: =C$28*(C23^(C$30)) -> 9.04 | C23: =C$29*1.6*A23 -> 20.41 | D23: 0.22 | E23: 14.13592988 | F23: 0 | G23: 50.00 | H23: 0 | I23: 20.0 | J23: 12.76 | K23: 20.00
B26: Función de producción | D26: Función inversa de demanda
B27: y | C27: =C28*C29^C30 -> 7.1 | D27: b0 | E27: =mlNOc_trabajo_compet!E6 -> 100.0
B28: A | C28: =mlNOc_trabajo_compet!C7 -> 2.0 | D28: b1 | E28: =mlNOc_trabajo_compet!E7 -> -2.0
B29: q1 | C29: =mlNOc_trabajo_compet!C8 -> 12.8 | D29: y | E29: =mlNOc_trabajo_compet!E8 -> 7.1
B30: a | C30: =mlNOc_trabajo_compet!C9 -> 0.5 | D30: p | E30: =E27+E28*C27 -> 85.7
B31: w1 | C31: =mlNOc_trabajo_compet!C10 -> 20.0
A51: Maximización del Beneficio monopolio con trabajo competitivo
A52: Ponderador | B52: Función de Producción | C52: q1 | D52: Producto Marginal | E52: IMPM | F52: VPM | G52: Y | H52: P | I52: w | J52: CMw | K52: x1 line | M52: y1 line
A53: 0 | B53: =C$78*(C53^(C$80)) -> 0 | C53: =C$79*1.6*A53 -> 0 | D53: 0 | G53: =$E$27/$E$28*-A53 -> 0 | H53: =$E$77+$E$78*G53 -> 120.00 | I53: =$C$82+$C$83*C53 -> 12.0 | J53: =$C$82+2*$C$83*C53 -> 12.00 | K53: =$C$79 -> 5.88 | L53: =$C$85*A53 -> 0 | M53: =$C$84 -> 29.63 | N53: =$C$79*A53 -> 0
A54: 0.05 | B54: =C$78*(C54^(C$80)) -> 2.06 | C54: =C$79*1.6*A54 -> 0.47 | D54: =C$80*C$78*(C54^($C$80-1)) -> 2.19 | F54: =$C$80*H54*$C$78*C54^($C$80-1) -> 249.407934 | G54: =$E$77/$E$78*-A54 -> 2.00 | H54: =$E$77+$E$78*G54 -> 114.00 | I54: =$C$82+$C$83*C54 -> 13.4 | J54: =$C$82+2*$C$83*C54 -> 14.82 | K54: =$C$79 -> 5.88 | L54: =$C$85*A54 -> 2.36 | M54: =$C$84 -> 29.63 | N54: =$C$79*A54 -> 0.29
A55: 0.10 | B55: 2.91 | C55: 0.94 | D55: =C$80*C$78*(C55^($C$80-1)) -> 1.55 | F55: =$C$80*H55*$C$78*C55^($C$80-1) -> 167.0760392 | G55: =$E$77/$E$78*-A55 -> 4.00 | H55: 108.00 | I55: 14.8 | J55: 17.64 | K55: 5.88 | L55: 4.73 | M55: 29.63 | N55: 0.59
A56: 0.15 | B56: 3.56 | C56: 1.41 | D56: 1.26 | F56: 128.8382917 | G56: 6.00 | H56: 102.00 | I56: 16.2 | J56: 20.46 | K56: 5.88 | L56: 7.09 | M56: 29.63 | N56: 0.88
A57: 0.20 | B57: 4.11 | C57: 1.88 | D57: 1.09 | F57: 105.0138669 | G57: 8.00 | H57: 96.00 | I57: 17.6 | J57: 23.28 | K57: 5.88 | L57: 9.45 | M57: 29.63 | N57: 1.18
A58: 0.25 | B58: 4.60 | C58: 2.35 | D58: 0.98 | E58: =($C$80*$E$77*$C$78*C58^($C$80-1))-(2*$C$80*$E$78*-1*$C$78^2*C58^(2*$C$80-1)) -> 90.41 | F58: 88.05680439 | G58: 10.00 | H58: 90.00 | I58: 19.1 | J58: 26.10 | K58: 5.88 | L58: 11.81 | M58: 29.63 | N58: 1.47
A59: 0.30 | B59: 5.04 | C59: 2.82 | D59: 0.89 | E59: 80.18 | F59: 75.02553039 | G59: 12.00 | H59: 84.00 | I59: 20.5 | J59: 28.92 | K59: 5.88 | L59: 14.18 | M59: 29.63 | N59: 1.76
A60: 0.35 | B60: 5.44 | C60: 3.29 | D60: 0.83 | E60: 72.23 | F60: 64.49870517 | G60: 14.00 | H60: 78.00 | I60: 21.9 | J60: 31.74 | K60: 5.88 | L60: 16.54 | M60: 29.63 | N60: 2.06
A61: 0.40 | B61: 5.82 | C61: 3.76 | D61: 0.77 | E61: 65.82 | F61: 55.69201307 | G61: 16.00 | H61: 72.00 | I61: 23.3 | J61: 34.56 | K61: 5.88 | L61: 18.90 | M61: 29.63 | N61: 2.35
A62: 0.45 | B62: 6.17 | C62: 4.23 | D62: 0.73 | E62: 60.51 | F62: 48.13135568 | G62: 18.00 | H62: 66.00 | I62: 24.7 | J62: 37.38 | K62: 5.88 | L62: 21.27 | M62: 29.63 | N62: 2.64
A63: 0.50 | B63: 6.50 | C63: 4.70 | D63: 0.69 | E63: 56.02 | F63: 41.51037568 | G63: 20.00 | H63: 60.00 | I63: 26.1 | J63: 40.20 | K63: 5.88 | L63: 23.63 | M63: 29.63 | N63: 2.94
A64: 0.55 | B64: 6.82 | C64: 5.17 | D64: 0.66 | E64: 52.16 | F64: 35.62073124 | G64: 22.00 | H64: 54.00 | I64: 27.5 | J64: 43.03 | K64: 5.88 | L64: 25.99 | M64: 29.63 | N64: 3.23
A65: 0.60 | B65: 7.13 | C65: 5.64 | D65: 0.63 | E65: 48.79 | F65: 30.31489217 | G65: 24.00 | H65: 48.00 | I65: 28.9 | J65: 45.85 | K65: 5.88 | L65: 28.35 | M65: 29.63 | N65: 3.53
A66: 0.65 | B66: 7.42 | C66: 6.11 | D66: 0.61 | E66: 45.81 | F66: 25.48490551 | G66: 26.00 | H66: 42.00 | I66: 30.3 | J66: 48.67 | K66: 5.88 | L66: 30.72 | M66: 29.63 | N66: 3.82
A67: 0.70 | B67: 7.70 | C67: 6.58 | D67: 0.58 | E67: 43.17 | F67: 21.04960237 | G67: 28.00 | H67: 36.00 | I67: 31.7 | J67: 51.49 | K67: 5.88 | L67: 33.08 | M67: 29.63 | N67: 4.11
A68: 0.75 | B68: 7.97 | C68: 7.05 | D68: 0.56 | E68: 40.79 | F68: 16.94653991 | G68: 30.00 | H68: 30.00 | I68: 33.2 | J68: 54.31 | K68: 5.88 | L68: 35.44 | M68: 29.63 | N68: 4.41
A69: 0.80 | B69: 8.23 | C69: 7.52 | D69: 0.55 | E69: 38.63 | F69: 13.12673337 | G69: 32.00 | H69: 24.00 | I69: 34.6 | J69: 57.13 | K69: 5.88 | L69: 37.80 | M69: 29.63 | N69: 4.70
A70: 0.85 | B70: 8.48 | C70: 7.99 | D70: 0.53 | E70: 36.67 | F70: 9.551101445 | G70: 34.00 | H70: 18.00 | I70: 36.0 | J70: 59.95 | K70: 5.88 | L70: 40.17 | M70: 29.63 | N70: 4.99
A71: 0.90 | B71: 8.73 | C71: 8.46 | D71: 0.52 | E71: 34.88 | F71: 6.188001452 | G71: 36.00 | H71: 12.00 | I71: 37.4 | J71: 62.77 | K71: 5.88 | L71: 42.53 | M71: 29.63 | N71: 5.29
A72: 0.95 | B72: 8.97 | C72: 8.93 | D72: 0.50 | E72: 33.23 | F72: 3.011479169 | G72: 38.00 | H72: 6.00 | I72: 38.8 | J72: 65.59 | K72: 5.88 | L72: 44.89 | M72: 29.63 | N72: 5.58
A73: 1.00 | B73: 9.20 | C73: 9.40 | D73: 0.49 | E73: 31.70 | F73: 0 | G73: 40.00 | H73: 0 | I73: 40.2 | J73: 68.41 | K73: 5.88 | L73: 47.26 | M73: 29.63 | N73: 5.88
B76: Función de producción | D76: Función inversa de demanda
B77: y | C77: =C78*C79^C80 -> 7.3 | D77: b0 | E77: =mlNOc_monopsonio!E6 -> 120.0
B78: A | C78: =mlNOc_monopsonio!C7 -> 3.0 | D78: b1 | E78: =mlNOc_monopsonio!E7 -> -3.0
B79: q1 | C79: =mlNOc_monopsonio!C8 -> 5.9 | D79: y | E79: =C77 -> 7.3
B80: a | C80: =mlNOc_monopsonio!C9 -> 0.5 | D80: p | E80: =E77+E78*C77 -> 98.2
B81: Función inversa de trabajo
B82: w0 | C82: =mlNOc_monopsonio!C11 -> 12.0
B83: w1 | C83: =mlNOc_monopsonio!C12 -> 3.0
B84: w | C84: =C82+C83*C79 -> 29.6
B85: CM | C85: =C82+2*C83*C79 -> 47.3

Sheet mlNOc_monopsonio (hidden)
A1: MERCADO LABORAL NO COMPETITIVO
A2: Elección del monopolio de la cantidad de trabajo en un monopsonio laboral
B5: Función de producción | D5: Función inversa de demanda
B6: y | C6: =OcultomlabNOcom!C57 -> 1.9 | D6: b0 | E6: 120.0
B7: A | C7: 3.0 | D7: b1 | E7: -3.0
B8: q1 | C8: 5.9 | D8: y | E8: =C56 -> 0.0
B9: a | C9: 0.5 | D9: p | E9: =OcultomlabNOcom!E80 -> 98.2
B10: Función inversa de trabajo
B11: w0 | C11: 12.0 | J11: =(C9*E6*C7*C8^(C9-1))-(2*C9*E7*-1*C7^2*C8^(2*C9-1))-C11-2*C12*C8 -> 2.415372757e-05
B12: w1 | C12: 3.0
B13: w | C13: =C11+C12*C8 -> 29.6
B14: CM | C14: =C11+2*C12*C8 -> 47.3
B15: Insertar datos correspondientes
B26: Títulos
B27: Resultados
B28: Insertar Datos
B29: Insertar datos
B30: Cantidad de equilibrio
